bitfinex/quotes_ETHUSD_20250623
["timestamp","ask_amount","ask_price","bid_price","bid_amount"]
[1750698726534,0.4933,2254.6,2253.4,14.26]
[1750698726773,0.09144103,2254.5,2253.5,1.12096642]
[1750698726944,0.09144103,2254.5,2253.6,10.769]
[1750698727668,0.09144103,2254.5,2253.5,4.43743463]
[1750698727871,0.09144103,2254.5,2253.5,4.43737593]
[1750698729779,0.4933,2252.9,2252.0,10.72240496]
[1750698730137,0.58821846,2252.9,2252.0,10.72240496]
[1750698730374,0.58821846,2252.9,2252.0,11.79464546]
[1750698730599,0.58821846,2252.9,2252.0,10.72240496]
[1750698730877,0.58821846,2252.9,2251.8,4.44073356]
[1750698731122,0.4933,2252.7,2250.8,10.89103009]
[1750698731372,0.4933,2252.3,2251.0,4.44247001]
[1750698731674,0.09729906,2252.2,2251.3,4.44175147]
[1750698731864,0.09729906,2252.2,2251.3,15.13978677]
[1750698732061,0.09729906,2252.2,2251.3,15.13987363]
[1750698732393,0.09729906,2252.2,2251.3,15.13978676]
[1750698732552,0.09729906,2252.2,2251.2,10.679]
[1750698732939,0.09729906,2252.2,2251.2,11.7469]
[1750698733148,0.09729906,2252.2,2251.3,10.0]
[1750698733549,0.09729906,2252.2,2251.4,4.44168073]
[1750698733851,0.09729906,2252.2,2252.0,4.44040771]
[1750698734064,0.09729906,2252.2,2252.1,4.44030016]
[1750698734671,0.09729906,2252.2,2252.1,4.98976756]
[1750698735474,0.4933,2253.2,2252.4,4.43968396]
[1750698735773,0.4933,2253.2,2252.3,10.626]
[1750698736077,0.4933,2253.2,2251.7,4.152]
[1750698736078,0.4933,2252.8,2251.7,10.625]
[1750698736308,0.4933,2252.6,2251.7,10.625]
[1750698736475,0.4933,2252.6,2251.7,15.06599823]
[1750698736669,0.4933,2252.6,2251.7,10.625]
[1750698737071,0.4933,2252.6,2251.7,15.06596576]
[1750698737272,0.4933,2252.6,2252.0,4.44039725]
[1750698737596,0.4933,2252.6,2251.9,10.604]
[1750698738998,0.4933,2253.1,2251.9,10.604]
[1750698739170,0.4933,2253.1,2252.4,14.55233574]
[1750698739372,0.4933,2253.1,2252.5,10.638]
[1750698739570,0.4933,2253.1,2252.6,4.43918633]
[1750698739802,0.4933,2253.1,2252.7,4.43910631]
[1750698739996,0.4933,2253.1,2252.5,10.63]
[1750698740202,0.4933,2253.1,2252.8,4.43882298]
[1750698740510,0.4933,2253.1,2252.6,10.0]
[1750698740713,0.4933,2253.1,2253.0,4.4385264]
[1750698740912,10.618,2254.8,2252.5,10.63]
[1750698740913,0.4933,2253.6,2252.5,10.0]
[1750698741089,0.4933,2253.6,2252.8,10.0]
[1750698741286,0.4933,2253.6,2252.7,14.43900059]
[1750698741584,0.4933,2253.6,2252.7,10.0]
[1750698741783,0.4933,2253.6,2252.6,15.04015241]
[1750698742007,0.4933,2253.6,2252.7,4.4391175]
[1750698742209,0.4933,2253.6,2252.8,4.43877861]
[1750698742409,0.4933,2253.6,2252.6,10.601]
[1750698742616,0.4933,2253.6,2252.6,11.6611]
[1750698742780,0.4933,2253.6,2252.9,4.43858166]
[1750698743121,0.4933,2253.6,2252.6,11.6611]
[1750698743122,0.4933,2253.6,2252.8,4.43892045]
[1750698743297,0.4933,2253.6,2252.6,10.601]
[1750698743478,0.4933,2253.6,2252.6,15.04028039]
[1750698743693,0.4933,2253.6,2251.8,5.2542559]
[1750698743899,0.4933,2253.6,2251.7,25.21633574]
[1750698743900,0.4933,2253.3,2251.9,4.152]
[1750698744099,10.0,2253.3,2251.7,10.664]
[1750698744320,0.4933,2253.2,2251.8,10.558]
[1750698744520,14.55233574,2252.9,2251.3,4.3600528]
[1750698744722,14.55233574,2252.9,2251.3,8.80192962]
[1750698744723,10.4933,2252.8,2251.3,8.80192962]
[1750698744936,0.4933,2252.6,2251.7,4.44099834]
[1750698745237,0.4933,2252.6,2251.4,11.42719296]
[1750698745454,0.4933,2252.6,2252.2,4.43994718]
[1750698745604,0.4933,2252.6,2252.1,10.534]
[1750698745795,0.4933,2252.6,2251.3,0.2080528]
[1750698746000,0.4933,2252.6,2251.5,4.44146329]
[1750698746248,0.4933,2252.6,2251.4,10.532]
[1750698747057,0.4933,2252.6,2251.5,10.522]
[1750698747517,0.4933,2252.4,2251.3,0.2080528]
[1750698747717,14.55233574,2252.2,2251.3,0.2080528]
[1750698747953,0.4933,2252.0,2251.3,0.2080528]
[1750698751052,0.4933,2252.0,2251.6,4.44122552]
[1750698751218,0.4933,2252.0,2251.4,4.44156938]
[1750698751421,0.4933,2252.0,2251.3,0.2080528]
[1750698751617,4.5373,2253.2,2251.9,4.44060038]
[1750698751824,11.9524117,2253.1,2251.9,10.438]
[1750698752125,2.32202576,2253.1,2252.0,4.44045327]
[1750698752347,0.4933,2252.9,2251.9,10.437]
[1750698752546,0.4933,2252.9,2251.9,14.87760111]
[1750698752936,0.4933,2252.9,2252.1,4.44020475]
[1750698753134,0.4933,2252.9,2252.1,4.44028544]
[1750698753335,0.4933,2252.9,2252.3,4.43985227]
[1750698753674,0.4933,2252.9,2252.2,4.44009603]
[1750698753849,0.4933,2252.9,2251.9,10.437]
[1750698754023,0.4933,2252.9,2251.9,4.44055966]
[1750698754228,0.4933,2252.9,2252.0,14.84045091]
[1750698754578,0.4933,2252.9,2252.0,11.88404509]
[1750698754739,0.4933,2252.9,2252.3,4.43980478]
[1750698754919,0.4933,2252.9,2252.4,4.43960869]
[1750698755124,0.4933,2252.9,2252.3,4.43986864]
[1750698755125,0.4933,2252.9,2252.5,14.82250558]
[1750698755473,0.4933,2254.4,2252.6,14.55233574]
[1750698755762,0.4933,2254.4,2252.8,10.0]
[1750698755981,0.4933,2254.4,2253.3,4.43790471]
[1750698756265,0.4933,2254.4,2253.2,4.43809926]
[1750698756266,0.4933,2254.4,2253.5,4.4375416]
[1750698756436,0.4933,2254.4,2253.4,14.422]
[1750698756636,0.4933,2254.4,2253.7,4.43705394]
[1750698756985,0.4933,2254.4,2253.6,4.43719875]
[1750698757272,0.4933,2254.4,2253.7,4.43711054]
[1750698757429,0.4933,2254.4,2253.5,10.368]
[1750698757938,0.4933,2254.4,2253.7,4.43713943]
[1750698758140,0.4933,2254.4,2253.8,4.43682511]
[1750698758336,0.4933,2254.4,2253.8,4.43688756]
[1750698758550,10.34,2256.0,2253.5,10.368]
[1750698758551,4.4293,2255.7,2254.2,4.43606144]
[1750698758726,0.4933,2255.6,2254.5,4.43545501]
[1750698758925,0.4933,2255.6,2254.3,10.33]
[1750698758926,0.44293,2255.5,2254.3,10.33]
[1750698759373,0.4933,2255.3,2254.4,10.328]
[1750698759672,10.4933,2255.3,2254.4,10.316]
[1750698759842,0.4933,2255.3,2254.4,10.316]
[1750698761272,0.4933,2255.3,2254.0,14.598]
[1750698761273,0.4933,2255.3,2254.3,0.7614]
[1750698761579,0.4933,2255.3,2253.3,0.7614]
[1750698761740,0.4933,2254.9,2253.0,10.662]
[1750698761934,14.55233574,2254.7,2253.2,4.4380308]
[1750698762134,0.4933,2254.6,2253.1,11.3422]
[1750698762360,0.4933,2254.5,2253.2,10.268]
[1750698762869,0.4933,2254.2,2253.0,10.662]
[1750698763069,0.4933,2254.2,2253.2,10.261]
[1750698763289,0.4933,2254.1,2253.1,10.255]
[1750698763435,10.0,2254.2,2252.2,10.662]
[1750698763436,0.4933,2253.7,2252.2,10.662]
[1750698763640,0.4933,2253.5,2252.3,10.252]
[1750698764453,0.4933,2253.5,2252.3,14.69173646]
[1750698764653,0.4933,2253.5,2252.3,14.69180242]
[1750698764869,0.4933,2253.5,2252.2,10.662]
[1750698765075,0.4933,2253.4,2252.4,10.233]
[1750698765236,0.4933,2253.2,2252.1,10.218]
[1750698765438,1.50456357,2253.3,2252.1,10.218]
[1750698765439,0.4933,2253.0,2252.1,10.218]
[1750698765662,4.4283,2253.0,2252.1,10.218]
[1750698765969,0.4933,2252.9,2252.1,10.218]
[1750698766974,0.4933,2252.9,2252.1,11.2398]
[1750698767161,0.4933,2252.9,2252.1,10.218]
[1750698767472,0.4933,2252.9,2251.4,0.45475354]
[1750698767473,0.4933,2252.9,2252.0,10.182]
[1750698767875,0.4933,2252.9,2252.4,4.43959628]
[1750698768039,0.4933,2252.9,2252.4,4.43966561]
[1750698768240,0.4933,2252.9,2251.8,4.44089173]
[1750698768578,0.4933,2252.9,2251.9,10.172]
[1750698769290,0.4933,2252.9,2251.9,14.61267273]
[1750698769495,0.4933,2252.9,2251.9,10.172]
[1750698770354,0.4933,2252.9,2252.0,4.44039544]
[1750698770554,0.4933,2252.9,2251.9,14.6126308]
[1750698770555,0.4933,2252.9,2251.9,10.172]
[1750698770782,0.4933,2252.9,2252.0,1.0172]
[1750698770982,0.4933,2252.9,2251.9,10.172]
[1750698771196,0.4933,2252.8,2251.3,10.8700528]
[1750698771392,0.4933,2252.8,2251.4,10.146]
[1750698772275,0.4933,2252.8,2251.5,10.131]
[1750698772479,0.4933,2252.6,2251.5,10.131]
[1750698772679,0.4933,2252.5,2251.6,10.126]
[1750698772887,10.0,2252.5,2251.3,0.2080528]
[1750698773215,0.4933,2252.4,2251.3,0.2080528]
[1750698773716,0.4933,2252.3,2251.3,0.2080528]
[1750698773894,0.4933,2252.3,2251.3,5.11484269]
[1750698774090,0.4933,2252.3,2251.3,4.50106369]
[1750698774621,14.55233574,2252.2,2251.3,0.2080528]
[1750698774765,0.4933,2252.1,2251.3,0.2080528]
[1750698774970,14.55233574,2251.8,2251.3,0.2080528]
[1750698775203,0.4933,2251.7,2251.3,0.2080528]
[1750698778788,4.2073,2251.7,2251.3,0.2080528]
[1750698779207,4.62803,2251.7,2251.3,0.2080528]
[1750698780617,0.4933,2251.7,2251.3,0.2080528]
[1750698783922,0.4933,2251.5,2251.3,0.2080528]
[1750698784229,13.716,2251.4,2250.0,20.0]
[1750698784432,14.55233574,2251.1,2250.0,20.0]
[1750698784629,10.0,2251.0,2250.0,20.0]
[1750698785089,0.2853,2250.9,2250.0,20.0]
[1750698785289,0.2853,2250.9,2250.0,40.0]
[1750698785938,0.2853,2250.9,2250.0,50.045]
[1750698786423,0.2853,2250.9,2250.0,40.0]
[1750698786788,0.2853,2250.5,2250.0,40.0]
[1750698788930,0.73000538,2250.5,2250.0,40.0]
[1750698789138,0.2853,2250.4,2250.0,40.0]
[1750698790101,14.55233574,2250.3,2250.0,35.48675536]
[1750698790497,14.55233574,2250.3,2249.0,0.2255101]
[1750698790498,10.34809122,2250.2,2249.0,0.2255101]
[1750698790701,14.55233574,2249.8,2249.0,0.2255101]
[1750698790905,4.06449886,2249.7,2249.0,0.2255101]
[1750698791135,14.55233574,2249.4,2249.0,0.2255101]
[1750698791349,14.55233574,2249.7,2249.0,0.2255101]
[1750698791548,14.55233574,2250.4,2249.1,4.44612336]
[1750698791734,4.06450087,2250.0,2249.0,0.2255101]
[1750698791908,14.55233574,2249.6,2249.0,0.2255101]
[1750698792343,10.0,2249.8,2249.0,0.2255101]
[1750698792649,14.55233574,2249.5,2249.0,0.2255101]
[1750698792944,4.06376241,2249.7,2249.0,0.2255101]
[1750698792945,24.55233574,2249.1,2249.0,0.2255101]
[1750698793109,10.0,2249.0,2246.8,0.8063]
[1750698793312,10.0,2249.0,2246.7,0.2255101]
[1750698793313,4.06546115,2248.9,2246.7,0.2255101]
[1750698793535,10.677,2249.1,2246.7,0.2255101]
[1750698793536,14.55233574,2248.5,2246.8,0.8171]
[1750698793742,1.80269472,2248.4,2246.8,0.8171]
[1750698794045,0.34746115,2248.3,2246.7,0.2255101]
[1750698794355,14.55233574,2248.0,2246.7,0.2255101]
[1750698794536,0.34746115,2247.9,2246.7,0.2255101]
[1750698794732,10.34746115,2247.9,2246.7,0.2255101]
[1750698794947,10.0,2247.5,2246.7,0.2255101]
[1750698795246,10.0,2247.5,2246.2,0.03185661]
[1750698795247,10.0,2247.1,2246.2,0.03185661]
[1750698795405,14.55233574,2247.2,2246.2,0.03185661]
[1750698795406,10.0,2246.7,2246.2,0.03185661]
[1750698795608,10.0,2246.3,2246.2,0.03185661]
[1750698796219,13.718,2246.3,2244.5,1.0132101]
[1750698796424,6.54703357,2246.2,2244.7,4.45493829]
[1750698796628,10.0,2246.6,2244.8,4.45473984]
[1750698796834,13.72,2246.6,2244.6,1.10602101]
[1750698797016,3.72,2246.6,2245.1,0.7663]
[1750698797225,10.677,2246.8,2245.9,4.45249634]
[1750698797459,25.22933574,2246.8,2245.1,0.7663]
[1750698797618,12.52293357,2246.7,2244.7,8.97548353]
[1750698797817,12.52293357,2246.7,2245.0,4.45427554]
[1750698798124,12.52293357,2246.7,2245.1,4.45411235]
[1750698798315,3.72,2246.6,2245.0,4.45424501]
[1750698798516,14.55233574,2246.1,2244.5,0.2255101]
[1750698798759,1.45523357,2246.0,2244.5,0.2255101]
[1750698799140,1.45523357,2246.0,2245.2,4.45391483]
[1750698799359,10.0,2246.6,2244.8,24.60733574]
[1750698799556,10.0,2246.6,2244.9,3.722]
[1750698799856,10.0,2246.6,2244.8,8.17660505]
[1750698800152,10.0,2246.6,2245.4,4.45353047]
[1750698800360,10.0,2246.6,2244.8,3.722]
[1750698800361,1.25229336,2246.5,2245.7,4.45282496]
[1750698800543,14.55233574,2247.4,2245.6,3.722]
[1750698800743,10.688,2247.6,2246.0,4.45235975]
[1750698801047,5.82444612,2247.8,2245.8,4.45266313]
[1750698801264,5.82444612,2247.8,2246.4,4.45155912]
[1750698801420,1.58794461,2247.7,2246.3,3.722]
[1750698801821,14.55233574,2248.1,2246.3,3.722]
[1750698801822,14.55233574,2248.7,2246.8,0.802]
[1750698802024,10.0,2248.6,2246.8,0.802]
[1750698802327,14.55233574,2249.0,2247.0,14.55233574]
[1750698802541,18.27433574,2249.3,2247.1,13.778]
[1750698802856,3.722,2249.3,2247.5,0.7681]
[1750698803061,0.3722,2249.2,2247.8,4.44866344]
[1750698803221,10.688,2249.8,2247.9,3.722]
[1750698803421,10.688,2249.8,2248.3,4.44761573]
[1750698803648,10.0,2249.7,2248.5,4.4474043]
[1750698803954,3.722,2249.9,2248.5,4.44727456]
[1750698804155,3.722,2249.9,2248.4,0.8087]
[1750698804454,10.3722,2249.8,2248.3,4.44777711]
[1750698804649,10.3722,2249.8,2248.3,18.22569479]
[1750698804842,10.3722,2249.8,2248.3,13.778]
[1750698805153,10.3722,2249.8,2248.3,4.44780097]
[1750698805478,14.55233574,2250.7,2248.4,14.55233574]
[1750698805775,10.0,2250.6,2248.5,4.44738865]
[1750698805971,10.0,2250.6,2248.8,4.44679876]
[1750698806264,10.0,2250.6,2248.7,13.776]
[1750698806265,3.722,2250.5,2248.7,13.776]
[1750698806485,10.0,2250.2,2248.3,10.688]
[1750698806650,2.45523357,2250.1,2248.4,18.22259485]
[1750698807075,10.0,2249.8,2248.3,10.688]
[1750698807260,10.0,2249.4,2247.7,4.44888059]
[1750698807612,10.0,2249.2,2247.6,14.5021116]
[1750698807879,3.704,2249.3,2247.6,10.053]
[1750698808049,10.0,2249.2,2247.6,10.053]
[1750698808253,10.0,2249.2,2247.9,4.44848825]
[1750698808473,10.0,2249.2,2247.9,4.44858802]
[1750698808769,10.0,2249.2,2247.9,4.44858947]
[1750698808941,10.0,2249.2,2247.5,26.04673574]
[1750698809138,1.40744,2249.1,2247.5,11.4944]
[1750698809455,1.40744,2249.1,2247.7,4.44887668]
[1750698809635,1.40744,2249.1,2247.7,4.44894716]
[1750698809842,1.40744,2249.1,2247.5,11.4944]
[1750698810135,1.40744,2249.1,2247.6,10.052]
[1750698810340,10.0,2248.8,2247.4,10.051]
[1750698810780,10.0,2248.8,2247.3,10.051]
[1750698810954,10.0,2248.4,2247.1,4.45016473]
[1750698811149,3.704,2248.3,2246.6,4.45117065]
[1750698811387,3.704,2248.3,2247.1,4.45009059]
[1750698811549,3.704,2248.3,2247.0,4.45037002]
[1750698811871,3.704,2248.3,2246.9,10.051]
[1750698812076,3.704,2248.3,2247.3,4.44958658]
[1750698812443,3.704,2248.3,2247.1,4.45003835]
[1750698812677,3.704,2248.3,2246.7,10.05]
[1750698812678,10.0,2248.2,2246.7,10.05]
[1750698812896,10.0,2247.9,2246.3,10.05]
[1750698813177,10.0,2247.8,2246.5,4.4512819]
[1750698813373,2.45523357,2247.8,2246.4,4.45156695]
[1750698813590,3.704,2247.8,2246.3,14.50175264]
[1750698813793,3.704,2247.8,2246.6,4.45107097]
[1750698813951,3.704,2247.8,2246.7,10.049]
[1750698814143,3.704,2247.8,2247.0,4.45034428]
[1750698814343,3.704,2247.8,2246.2,10.0]
[1750698814580,3.704,2247.8,2246.6,4.4510596]
[1750698814786,3.704,2247.8,2246.7,4.4508827]
[1750698814993,3.704,2247.8,2246.1,0.8073]
[1750698815142,3.704,2247.8,2246.6,4.45107979]
[1750698815349,10.0,2247.7,2246.5,10.05]
[1750698815581,10.3704,2247.7,2246.1,10.05]
[1750698816280,10.3704,2247.7,2246.2,4.45186916]
[1750698816453,10.3704,2247.7,2246.1,10.049]
[1750698816849,10.3704,2247.7,2245.9,4.45254523]
[1750698817050,10.0,2247.5,2246.3,4.4516322]
[1750698817362,10.0,2247.5,2246.6,4.4510733]
[1750698817561,10.0,2247.5,2246.5,4.45127511]
[1750698817886,2.86267357,2247.6,2246.9,4.45045736]
[1750698818053,3.705,2247.7,2246.7,4.45086584]
[1750698818248,4.0755,2247.7,2245.8,8.48522169]
[1750698818465,10.0,2247.6,2246.1,4.45205056]
[1750698818685,10.0,2247.6,2245.8,18.53422169]
[1750698818981,10.0,2247.2,2245.8,14.50068749]
[1750698819180,10.0,2247.2,2246.0,4.45232882]
[1750698819380,10.0,2247.0,2245.9,4.45237383]
[1750698819546,3.705,2246.9,2245.8,4.45265955]
[1750698819750,18.25733574,2246.9,2245.3,10.048]
[1750698820085,10.0,2246.8,2245.5,4.45321573]
[1750698820253,10.0,2246.8,2245.6,4.45313104]
[1750698820586,1.3705,2246.7,2245.6,4.45299704]
[1750698820784,1.3705,2246.7,2245.8,4.45267757]
[1750698820948,1.3705,2246.7,2245.3,10.048]
[1750698821145,1.3705,2246.7,2245.3,14.50155373]
[1750698821400,10.0,2247.0,2245.4,10.0]
[1750698821548,10.0,2247.0,2246.0,4.45225049]
[1750698821749,10.0,2247.0,2246.3,4.45176192]
[1750698821948,3.52433357,2247.1,2246.2,4.4518639]
[1750698822183,3.52433357,2247.1,2246.2,4.45194334]
[1750698822484,3.52433357,2247.1,2245.8,4.45275625]
[1750698822690,3.705,2247.2,2246.2,4.45183273]
[1750698822888,3.705,2247.2,2246.3,4.45175875]
[1750698823093,3.705,2247.2,2246.3,4.45168029]
[1750698823478,3.705,2247.2,2246.2,4.45185975]
[1750698823682,5.1446,2247.2,2246.1,10.046]
[1750698823909,5.1446,2247.2,2246.1,14.49804685]
[1750698824204,5.1446,2247.2,2246.3,4.45163357]
[1750698824370,10.0,2247.1,2245.5,0.7673]
[1750698824693,10.0,2246.8,2245.7,4.45285414]
[1750698824871,2.45523357,2246.7,2245.6,4.45304261]
[1750698825213,2.45523357,2246.7,2245.1,0.7552]
[1750698825214,2.45523357,2246.7,2245.1,15.30753574]
[1750698825357,10.0,2247.0,2245.2,14.49892807]
[1750698825553,10.0,2247.0,2245.7,4.4529124]
[1750698825856,10.0,2247.0,2245.2,10.045]
[1750698825857,10.0,2247.0,2245.6,4.45308266]
[1750698826055,10.0,2247.0,2245.3,10.044]
[1750698826261,3.706,2246.9,2245.3,10.044]
[1750698826482,10.3706,2246.8,2244.9,4.4545414]
[1750698826664,10.3706,2246.8,2244.8,4.45454956]
[1750698826665,10.3706,2246.8,2245.8,4.45267804]
[1750698827015,1.4396,2247.2,2246.1,4.45198012]
[1750698827173,11.4396,2247.2,2245.3,10.8137]
[1750698827374,14.55233574,2247.1,2244.8,15.36603574]
[1750698827554,24.59533574,2247.1,2245.4,4.45352918]
[1750698827761,10.0,2247.0,2245.2,14.49689021]
[1750698827990,3.45953357,2246.9,2245.4,4.45345559]
[1750698828193,3.45953357,2246.9,2245.2,10.043]
[1750698828383,3.45953357,2246.9,2245.6,4.45315172]
[1750698828384,3.706,2246.8,2245.6,4.45315172]
[1750698828584,3.706,2246.8,2245.3,10.042]
[1750698828787,3.706,2246.8,2245.6,4.45305366]
[1750698829002,5.42255336,2246.8,2245.3,10.042]
[1750698829172,3.706,2246.8,2245.6,4.453134]
[1750698829380,3.706,2246.8,2245.8,4.45266809]
[1750698829715,3.706,2246.8,2245.3,24.59433574]
[1750698829862,3.706,2246.8,2245.8,4.45265258]
[1750698830061,3.706,2246.8,2245.4,4.45354947]
[1750698830267,3.706,2246.8,2245.5,5.27365114]
[1750698830574,3.706,2246.8,2245.3,10.0]
[1750698830899,3.706,2246.8,2245.3,10.04]
[1750698831068,3.706,2246.8,2245.4,4.45343998]
[1750698831268,3.706,2246.8,2245.3,10.04]
[1750698831468,4.0766,2246.8,2245.4,5.45740885]
[1750698831692,4.0766,2246.8,2245.4,5.45738399]
[1750698831868,4.0766,2246.8,2245.6,4.45314183]
[1750698832372,25.99193574,2247.2,2245.5,4.45335017]
[1750698832561,3.707,2247.1,2245.8,4.45275368]
[1750698832772,10.0,2247.0,2245.8,4.45275368]
[1750698833097,10.0,2247.0,2245.7,4.45277113]
[1750698833302,10.0,2247.0,2245.8,4.4526775]
[1750698833464,10.0,2247.0,2245.6,14.49105849]
[1750698833465,1.3707,2246.9,2245.7,4.45293421]
[1750698833662,1.3707,2246.9,2245.8,4.45273004]
[1750698833869,1.3707,2246.9,2245.5,14.49030486]
[1750698834067,10.0,2247.0,2245.8,4.45256211]
[1750698834269,10.0,2247.0,2245.9,4.45254105]
[1750698834494,15.10233574,2246.9,2245.4,1.004]
[1750698834700,15.10233574,2246.9,2245.6,4.45303714]
[1750698834701,3.707,2246.8,2245.6,4.45303714]
[1750698834905,0.55,2246.7,2245.4,4.45346387]
[1750698835069,10.55,2246.7,2245.1,4.45414458]
[1750698835276,10.696,2248.0,2245.7,0.8197]
[1750698835497,10.696,2248.0,2246.3,14.55233574]
[1750698835727,3.707,2248.2,2246.8,4.45074677]
[1750698835882,3.707,2248.2,2246.9,10.034]
[1750698836069,3.707,2248.2,2247.0,10.034]
[1750698836534,3.707,2248.2,2247.3,4.44973785]
[1750698836714,3.707,2248.8,2247.3,0.44497379]
[1750698836900,3.707,2248.8,2247.6,4.44907443]
[1750698837215,3.707,2248.8,2247.6,10.033]
[1750698837513,0.36961406,2248.7,2247.6,10.033]
[1750698837713,10.36961406,2248.7,2247.5,4.44928198]
[1750698837942,0.36961406,2248.7,2247.7,10.032]
[1750698838122,10.77727547,2248.7,2247.7,10.032]
[1750698838622,10.77727547,2248.7,2247.5,4.44928709]
[1750698838822,0.55,2248.6,2247.5,4.44928511]
[1750698839023,0.36790484,2248.5,2247.5,4.44923317]
[1750698839221,0.36790484,2248.5,2247.1,10.03]
[1750698839543,0.36790484,2248.5,2247.5,4.44924334]
[1750698839838,0.36790484,2248.5,2247.1,14.4801586]
[1750698839839,0.36790484,2248.5,2247.2,10.0]
[1750698839996,0.36790484,2248.5,2248.0,4.44825833]
[1750698840398,3.685,2249.0,2248.1,4.44800671]
[1750698840836,13.71,2249.6,2248.3,4.44768518]
[1750698841031,13.71,2249.6,2248.0,10.025]
[1750698841032,1.371,2249.5,2248.4,4.44745393]
[1750698841231,3.685,2249.8,2248.4,4.4474202]
[1750698841405,3.684,2250.3,2248.5,0.7739]
[1750698841594,4.05361406,2250.3,2248.5,0.7739]
[1750698841796,4.05361406,2250.3,2248.8,4.44666774]
[1750698842045,4.05361406,2250.3,2249.0,4.44641384]
[1750698842244,4.05361406,2250.3,2249.3,4.44566394]
[1750698842245,0.40536141,2250.2,2249.3,4.44566394]
[1750698842404,4.05361406,2250.3,2248.7,10.0]
[1750698842405,0.36961406,2250.3,2248.7,10.0]
[1750698842603,10.0,2250.5,2248.8,13.704]
[1750698842833,10.0,2250.5,2249.1,4.44622141]
[1750698843158,10.0,2250.5,2248.6,14.55233574]
[1750698843454,10.691,2250.7,2249.2,10.019]
[1750698843606,10.0,2250.5,2249.2,10.019]
[1750698843807,2.52433357,2250.6,2249.2,14.46492859]
[1750698844114,2.52433357,2250.6,2249.4,14.55233574]
[1750698844420,3.683,2251.3,2249.4,18.99782614]
[1750698844597,10.0,2251.2,2249.4,14.55233574]
[1750698844794,3.683,2251.3,2249.4,14.55233574]
[1750698845044,0.09344212,2251.2,2249.7,4.4449692]
[1750698845363,10.09344212,2251.2,2249.7,3.683]
[1750698845511,1.37764421,2251.1,2249.8,0.8128135]
[1750698845715,0.09449294,2251.1,2249.8,4.44476001]
[1750698845907,0.09449294,2251.1,2249.7,8.12800886]
[1750698846225,0.09449294,2251.1,2249.6,10.011]
[1750698846226,14.55233574,2251.0,2249.6,10.011]
[1750698846425,10.55,2250.9,2248.8,0.8042]
[1750698846667,10.55,2250.1,2248.7,10.011]
[1750698846963,10.55,2249.9,2247.9,10.688]
[1750698847108,10.55,2249.9,2247.9,11.5099]
[1750698847109,10.55,2249.7,2247.9,11.5099]
[1750698847305,10.55,2249.7,2248.0,10.007]
[1750698847906,10.55,2249.7,2248.0,14.45528766]
[1750698847907,3.682,2249.6,2248.0,14.45528766]
[1750698848107,0.55,2249.5,2248.0,10.007]
[1750698848343,0.55,2249.3,2248.1,10.005]
[1750698848565,10.55,2249.9,2248.1,10.005]
[1750698848736,10.0,2249.5,2248.1,10.005]
[1750698849061,10.0,2249.5,2248.3,4.44761925]
[1750698849346,10.0,2249.5,2248.1,14.45314874]
[1750698849547,10.0,2249.5,2248.1,4.44806393]
[1750698849847,1.3682,2249.4,2248.2,10.003]
[1750698850147,1.3682,2249.4,2248.2,14.45100231]
[1750698850346,1.3682,2249.4,2248.2,10.003]
[1750698850551,10.0,2249.5,2248.6,4.44716934]
[1750698850756,3.682,2249.6,2248.3,10.7653]
[1750698850968,3.682,2249.6,2248.1,10.0]
[1750698851251,0.55,2249.5,2248.4,10.0]
[1750698851452,10.55,2249.5,2248.2,13.682]
[1750698851653,0.55,2249.3,2247.7,4.44888785]
[1750698851871,0.55,2249.3,2247.8,9.999]
[1750698852168,0.55,2249.3,2247.6,4.44912069]
[1750698852327,0.55,2249.3,2247.8,9.998]
[1750698852513,0.55,2249.3,2247.3,4.4496981]
[1750698852514,10.55,2248.9,2247.3,4.4496981]
[1750698852853,10.55,2248.7,2247.4,10.51910981]
[1750698853220,10.55,2248.7,2246.6,4.45113689]
[1750698853543,10.55,2248.5,2247.0,10.0]
[1750698853740,0.55,2248.5,2247.2,4.4499822]
[1750698854054,0.55,2248.4,2247.3,9.995]
[1750698854718,10.0,2248.7,2247.3,9.995]
[1750698854945,16.38825693,2248.7,2247.4,5.44895097]
[1750698855115,10.685,2249.2,2247.5,1.3752]
[1750698855315,3.682,2249.6,2248.0,14.55233574]
[1750698855542,10.0,2249.5,2248.6,4.44708336]
[1750698855730,10.0,2249.5,2248.7,4.44701079]
[1750698855934,11.3682,2249.5,2247.6,10.0]
[1750698856147,1.3682,2249.5,2248.3,4.44767642]
[1750698856329,3.682,2249.6,2248.3,4.44767642]
[1750698856628,10.0,2249.5,2248.4,4.44759127]
[1750698856842,10.0,2249.5,2248.5,4.44729654]
[1750698857053,10.0,2249.9,2248.7,4.4470083]
[1750698857231,3.682,2249.5,2248.7,4.4470083]
[1750698857427,3.682,2249.5,2247.9,10.0]
[1750698857629,4.0502,2249.5,2248.0,0.6178674]
[1750698857942,3.682,2249.4,2247.8,14.55233574]
[1750698858256,10.0,2249.3,2248.5,4.44739934]
[1750698858434,10.0,2249.3,2248.4,4.44750516]
[1750698858829,10.0,2249.3,2248.5,4.44739783]
[1750698859029,10.0,2249.3,2248.4,4.44748744]
[1750698859232,3.682,2249.4,2248.3,4.447805]
[1750698859459,10.0,2249.5,2248.5,4.44731443]
[1750698859622,10.0,2249.5,2248.5,4.44725144]
[1750698859818,10.0,2249.5,2248.4,4.89224548]
[1750698860026,0.66291368,2250.4,2248.3,10.7754]
[1750698860340,10.0,2250.0,2248.5,4.44730628]